Cogmind - Beta 13 @@@ ROGUE MODE // 2024.05.25 @ 12:22:37 Player: RD-BNK(r) Result: Destroyed by H-55 Commando with Assault Rifle Performance ------------- Evolutions (2) 1000 Regions Visited (5) 1000 Robots Destroyed (59) 295 Value Destroyed (1411) 1411 Prototype IDs (26) 520 Alien Tech Used (0) 0 Bonus (240) 240 TOTAL SCORE: 4466 Bonus ------- High Alert Combat Kills 11 Aligned with FarCom 300 Friendly Fire -71 Cogmind --------- Core Integrity 0/550 Matter 53/300 Energy 275/275 System Corruption 0% Temperature Cool (0) Movement Treading (225) Ox1 Location -8/Materials Parts ------- > --- POWER (1) -------- Deuterium Engine > --- PROPULSION (4) --- Advanced Treads > --- UTILITY (4) ------ Small Storage Unit Large Storage Unit > --- WEAPON (2) ------- Heavy Hammer > --- INVENTORY (15) --- Light Deuterium Engine VTOL Module VTOL Module Superbattery (1500) Improved Signal Interpreter Improved EM Shotgun Assault Cannon Peak State ------------ > --- POWER ------------ Light Nuclear Core > --- PROPULSION ------- Light Treads Light Treads Light Treads Compact Wheel > --- UTILITY ---------- Lightpack 2.0 Improved Light Armor Plating > --- WEAPON ----------- Assault Cannon Flak Cannon > --- INVENTORY -------- Ion Engine Light Ion Engine Light Deuterium Engine Light Nuclear Core Light Nuclear Core VTOL Module VTOL Module VTOL Module VTOL Module Medium Storage Unit Superbattery Weight Redist. System Structural Scanner Improved Signal Interpreter Seismic Detector Particle Gun Beam Cannon Grenade Launcher Rocket Launcher Heavy Hammer [Rating: 50] Favorites ----------- Power Ion Engine Engine Ion Engine Power Core Light Nuclear Core Propulsion Light Treads Treads Light Treads Leg Aluminum Leg Wheel Compact Wheel Flight Unit VTOL Module Utility High-capacity Storage Unit Device Seismic Detector Storage High-capacity Storage Unit Hackware System Shield Protection Improved Light Armor Plating Weapon Assault Rifle Energy Gun Improved EM Shotgun Ballistic Gun Assault Rifle Ballistic Cannon Flak Cannon Launcher Grenade Launcher Impact Weapon Heavy Hammer Slashing Weapon Mining Claw Build | -11 -10 -10 -10 -9 -8 ------- Run | Yrd Mat Min Exi Min Mat Slots Evolved 4 | . . . . . 4 Power . | . . . . . . Propulsion 2 | . . . . . 2 Utility 2 | . . . . . 2 Weapon . | . . . . . . Parts Attached 53 | 4 12 5 1 5 26 Power 7 | . 3 . . 1 3 Engine 5 | . 2 . . 1 2 Core 2 | . 1 . . . 1 Reactor . | . . . . . . Propulsion 10 | 2 2 . . . 6 Treads 7 | 2 1 . . . 4 Leg . | . . . . . . Wheel 1 | . 1 . . . . Hover . | . . . . . . Flight 2 | . . . . . 2 Utility 15 | 1 4 2 . . 8 Device 7 | 1 3 2 . . 1 Storage 5 | . 1 . . . 4 Processor . | . . . . . . Hackware 1 | . . . . . 1 Protection 2 | . . . . . 2 Artifact . | . . . . . . Weapon 21 | 1 3 3 1 4 9 Energy Gun 1 | . . . . . 1 Energy Cannon . | . . . . . . Ballistic Gun 6 | 1 1 2 . 2 . Ballistic Cannon 6 | . . . . . 6 Launcher 4 | . 2 . . 1 1 Special Weapon . | . . . . . . Impact Weapon 2 | . . . . 1 1 Slashing Weapon 2 | . . 1 1 . . Piercing Weapon . | . . . . . . Special Melee Weapon . | . . . . . . Unidentified Prototypes 3 | . . 1 . . 2 Parts Lost 17 | . 4 . . . 13 Power 4 | . 2 . . . 2 Propulsion 5 | . 1 . . . 4 Utility 4 | . 1 . . . 3 Weapon 4 | . . . . . 4 Highest Loss Streak 7 | . 3 . . . 7 To Critical Strikes . | . . . . . . Average Slot Usage (%) 88 | . 93 99 85 100 71 Engine 6 | . 10 . . 10 5 Core 4 | . . 14 14 3 . Treads 20 | . 24 14 14 14 21 Wheel 7 | . 3 14 14 14 6 Device 9 | . 10 13 14 14 1 Storage 12 | . 14 14 14 14 9 Protection 2 | . . . . . 6 Ballistic Gun 13 | . 21 15 . 22 . Ballistic Cannon 4 | . . . . . 14 Launcher 4 | . 6 7 . 2 . Slashing Weapon 1 | . . 4 14 . . Naked Turns . | . . . . . . Heaviest Build 53 | 15 51 51 48 53 37 Greatest Support 40 | 40 40 16 16 16 26 Greatest Overweight (x) 6 | . 3 3 2 3 6 Average Overweight (x) 1 | . 1 3 2 2 . Largest Inventory Capacity 40 | 8 20 20 20 20 40 Average Capacity 22 | 8 19 20 20 20 29 Most Carried 21 | 7 20 20 20 20 21 Average Carried 15 | 4 13 19 19 19 15 Final Capacity 20 | 8 20 20 20 20 15 Final Carried 20 | 4 18 20 20 19 7 Class Distribution -------------------- 73% | Mutant 18% | Hauler-Mutant 4% | Scavenger-Mutant Dominant Class ---------------- Mutant | -10/Materials Mutant | -10/Mines Mutant | -10/Exiles Mutant | -9/Mines Hauler-Mutant | -8/Materials Resources | -11 -10 -10 -10 -9 -8 ----------- Run | Yrd Mat Min Exi Min Mat Matter Collected 1654 | 236 441 217 . 140 620 Remotely . | . . . . . . Salvage Created 1464 | 12 518 272 . 130 532 Parts 101 | 3 38 19 . 6 35 Haulers Intercepted 3 | . 2 . . . 1 Recyclers Shooed 2 | . 1 . . 1 . Parts Field Recycled . | . . . . . . Retrieved Matter . | . . . . . . Parts Self-Destructed . | . . . . . . Prevented . | . . . . . . Kills | -11 -10 -10 -10 -9 -8 ------- Run | Yrd Mat Min Exi Min Mat Combat Hostiles Destroyed 39 | . 11 2 . 3 23 Melee 1 | . . . . . 1 Guns 10 | . 5 2 . 3 . Cannons 19 | . . . . . 19 AOE 8 | . 6 . . . 2 Classes Destroyed 12 | 1 7 2 . . 2 Worker 1 | . . 1 . . . Builder 2 | . . 1 . . 1 Tunneler 3 | 1 . 2 . . . Hauler 3 | . 2 . . . 1 Recycler 3 | . 2 1 . . . Operator 2 | . 1 . . . 1 Watcher 6 | . 3 . . . 3 Swarmer 14 | . 3 . . . 11 Grunt 18 | . 5 2 . 3 8 Brawler 1 | . . . . . 1 Sentry 3 | . . . . . 3 Subdweller 3 | . 3 . . . . Best Kill Streak 7 | 1 3 2 . 2 7 Combat Bots Only 7 | . 3 1 . 2 7 Max Kills in Single Turn 2 | 1 1 1 . 1 2 Gunslinging . | . . . . . . Exploded 2 | . 1 . . . 2 Melee 1 | . . . . . 1 Uniques/NPCs Destroyed . | . . . . . . Combat | -11 -10 -10 -10 -9 -8 -------- Run | Yrd Mat Min Exi Min Mat Hostile Shots Fired 293 | . 47 18 . 19 209 Missed 65 | . 14 6 . 5 40 Damage Taken 2863 | . 538 155 . 178 1992 Core 697 | . 76 49 . 18 554 Absorbed by Shields . | . . . . . . Regen/Repaired (Parts) 258 | . 258 . . . . Core Remaining (%) 71 | 100 . . . 42 . Volleys Fired 155 | 1 51 12 . 15 76 Largest 2 | 2 2 2 . 2 2 Hottest 88 | 40 40 40 . 40 88 Shots Fired 256 | 2 82 24 . 30 118 Gun 118 | 2 62 24 . 30 . Cannon 116 | . . . . . 116 Launcher 22 | . 20 . . . 2 Special . | . . . . . . Kinetic 234 | 2 62 24 . 30 116 Thermal . | . . . . . . Explosive 22 | . 20 . . . 2 Electromagnetic . | . . . . . . Robot Hit Streak 26 | 1 13 26 . 10 7 Robot Miss Streak 7 | . 2 1 . 3 7 Penetration Max . | . . . . . . Secondary Targets 2 | . 2 . . . . Max Gunslinging Chain 1 | . 1 . . . . Shots Hit Robots 186 | 1 60 25 . 22 78 Core Hits 111 | 1 33 12 . 6 59 Critical Kills 1 | . . . . . 1 Critical Parts Destroyed 2 | . . . . 1 1 Critical Strikes 4 | . . . . 1 3 Destroy 1 | . . . . 1 . Blast 1 | . . . . . 1 Smash 2 | . . . . . 2 Melee Attacks 23 | . . 9 . . 14 Impact 14 | . . . . . 14 Slashing 9 | . . 9 . . . Piercing . | . . . . . . Sneak Attacks 4 | . . 2 . . 2 Combat Hostiles . | . . . . . . Follow-up Attacks . | . . . . . . Damage Inflicted 4222 | 14 1434 518 . 282 1974 Guns 1142 | 14 596 250 . 282 . Cannons 1406 | . . . . . 1406 Explosions 996 | . 838 . . . 158 Melee 674 | . . 268 . . 406 Ramming 4 | . . . . . 4 Kinetic 2548 | 14 596 250 . 282 1406 Thermal . | . . . . . . Explosive 996 | . 838 . . . 158 Electromagnetic . | . . . . . . Impact 406 | . . . . . 406 Slashing 268 | . . 268 . . . Piercing . | . . . . . . Highest Corruption 1 | . 1 1 1 1 . Average Corruption 1 | . 1 1 1 1 . Corruption Purged . | . . . . . . Corruption Blocked . | . . . . . . Effects 18 | . 4 8 2 4 . Message Errors 6 | . . 3 2 1 . Matter Fused 4 | . 1 3 . . . Heat Flow Errors 1 | . 1 . . . . Energy Discharges 3 | . 1 . . 2 . Data Loss (minor) 3 | . 1 1 . 1 . Data Loss (major) 1 | . . 1 . . . Overload Shots . | . . . . . . Overflow Damage 197 | . . 32 . . 165 Projectiles 15 | . . . . . 15 Explosions . | . . . . . . Melee 182 | . . 32 . . 150 Knockbacks 33 | . . . . . 33 Impact 2 | . . . . . 2 Kinetic 29 | . . . . . 29 Secondary 2 | . . . . . 2 Self-Inflicted Damage 1 | . . . . . 1 Shots . | . . . . . . Rammed 2 | . . . . . 2 Targets Rammed 2 | . . . . . 2 Kicked . | . . . . . . Crushed . | . . . . . . Highest Temperature 322 | . 265 15 . 22 322 Average Temperature 109 | . 110 6 . 9 119 Received Heat Transfer 1083 | . 120 90 . 117 756 Effects 4 | . . . . . 4 Interference 4 | . . . . . 4 Siege Activations . | . . . . . . Robots Corrupted . | . . . . . . Combat Hostiles . | . . . . . . Parts Fried 2 | . . . . . 2 Impact Corruptions 7 | . . . . . 7 Robots Melted . | . . . . . . Combat Hostiles . | . . . . . . Parts Melted . | . . . . . . Heat Transferred . | . . . . . . Parts Sabotaged . | . . . . . . Parts Stolen . | . . . . . . Parts Stripped . | . . . . . . Power Chain Reactions . | . . . . . . Alert | -11 -10 -10 -10 -9 -8 ------- Run | Yrd Mat Min Exi Min Mat Peak Influence 419 | 5 200 105 . 70 419 Initial 3 | . 3 . . . . Average 63 | 3 40 21 . 36 131 Maximum Alert Level 2 | . 1 . . . 2 Low Security (%) 87 | 100 97 100 . 100 61 Level 1 12 | . 2 . . . 36 Level 2 . | . . . . . 1 Level 3 . | . . . . . . Level 4 . | . . . . . . Level 5 . | . . . . . . High Security . | . . . . . . Max Security . | . . . . . . Squads Dispatched 2 | . . . . . 2 Investigation . | . . . . . . Extermination . | . . . . . . Reinforcement 2 | . . . . . 2 Assault . | . . . . . . Garrison . | . . . . . . Intercept . | . . . . . . Searches Triggered . | . . . . . . Construction Impeded 1 | . . . . . 1 Haulers Reinforced . | . . . . . . Active Scanning Responses . | . . . . . . Cargo Convoy Interrupts . | . . . . . . Stealth | -11 -10 -10 -10 -9 -8 --------- Run | Yrd Mat Min Exi Min Mat Distress Signals 6 | . 2 . . . 4 Communications Jammed . | . . . . . . Distress Signals . | . . . . . . Times Spotted 65 | . 21 4 . 3 37 Peak Tracking Total 9 | . 6 2 . 3 9 Tactical Retreats 8 | . 2 1 . . 5 Traps | -11 -10 -10 -10 -9 -8 ------- Run | Yrd Mat Min Exi Min Mat Traps Triggered 1 | . 1 . . . . Indirectly . | . . . . . . Trap Hack Attempts . | . . . . . . Triggered . | . . . . . . Disarmed . | . . . . . . Reprogrammed . | . . . . . . Reused . | . . . . . . Traps Extracted . | . . . . . . Installed . | . . . . . . Triggered 1 | . . 1 . . . Machines | -11 -10 -10 -10 -9 -8 ---------- Run | Yrd Mat Min Exi Min Mat Machines Disabled 3 | . 1 . . . 2 Max in Single Turn 1 | . 1 . . . 1 Machines Repaired . | . . . . . . Machines Dismantled . | . . . . . . Machines Sabotaged . | . . . . . . Overloaded Fab Kills . | . . . . . . Hacking | -11 -10 -10 -10 -9 -8 --------- Run | Yrd Mat Min Exi Min Mat Machines Accessed 16 | . 9 1 2 . 4 Terminals 12 | . 8 . . . 4 Fabricators . | . . . . . . Repair Stations 1 | . 1 . . . . Recycling Units . | . . . . . . Scanalyzers . | . . . . . . Garrison Access . | . . . . . . Total Hacks 54 | . 37 1 2 . 14 Successful 39 | . 29 1 2 . 7 Failed 15 | . 8 . . . 7 Catastrophic 1 | . 1 . . . . Database Lockouts . | . . . . . . Manual 35 | . 21 . 1 . 13 Terminals 37 | . 23 . . . 14 Fabricators . | . . . . . . Repair Stations 14 | . 14 . . . . Recycling Units . | . . . . . . Scanalyzers . | . . . . . . Garrison Access . | . . . . . . Terminal Hacks 8 | . 3 1 2 . 2 Record 1 | . . . 1 . . Open Door 1 | . . 1 . . . Terminal Index 2 | . 1 . . . 1 Unreport Threat 1 | . . . . . 1 Locate Traps 1 | . 1 . . . . Hauler Manifests 1 | . 1 . . . . Derelict Proto ID Bank 1 | . . . 1 . . Fabricator Hacks . | . . . . . . Repair Station Hacks 13 | . 13 . . . . Scan Component 7 | . 7 . . . . Repair 6 | . 6 . . . . Recycling Unit Hacks . | . . . . . . Scanalyzer . | . . . . . . Garrison Access Hacks . | . . . . . . Unauthorized Hacks 18 | . 13 . . . 5 Terminals 18 | . 13 . . . 5 Track 3 | . 3 . . . . Assimilate 6 | . 3 . . . 3 Botnet 8 | . 6 . . . 2 Operators 1 | . 1 . . . . Fabricators . | . . . . . . Repair Stations . | . . . . . . Recycling Units . | . . . . . . Scanalyzers . | . . . . . . Garrison Access . | . . . . . . Data Cores Recovered . | . . . . . . Used . | . . . . . . Hacking Detections 12 | . 8 . . . 4 Full Trace Events . | . . . . . . Feedback Events . | . . . . . . Feedback Blocked . | . . . . . . Robot Schematics Acquired . | . . . . . . Robots Built . | . . . . . . Authchips . | . . . . . . Time . | . . . . . . Total Robot Build Rating . | . . . . . . Part Schematics Acquired . | . . . . . . Parts Built . | . . . . . . Authchips . | . . . . . . Time . | . . . . . . Total Part Build Rating . | . . . . . . Parts Repaired 6 | . 6 . . . . Time 168 | . 168 . . . . Parts Recycled . | . . . . . . Recycled Matter . | . . . . . . Retrieved Matter . | . . . . . . Retrieved Components . | . . . . . . Parts Scanalyzed . | . . . . . . Part Schematics Acquired . | . . . . . . Parts Damaged . | . . . . . . Bothacking | -11 -10 -10 -10 -9 -8 ------------ Run | Yrd Mat Min Exi Min Mat Used RIF Installer . | . . . . . . Robots Hacked . | . . . . . . Non-combat . | . . . . . . Combat . | . . . . . . Robot Hacks Applied . | . . . . . . Relay Couplers Released . | . . . . . . Fabnet Peak Effective % . | . . . . . . Robots Rewired . | . . . . . . Allies Hacked . | . . . . . . Hacks Repelled . | . . . . . . Allies | -11 -10 -10 -10 -9 -8 -------- Run | Yrd Mat Min Exi Min Mat Total Allies 9 | . 2 . . 5 2 Largest Group 6 | . 1 1 1 6 4 Highest-Rated Group 98 | . 10 10 10 98 50 Highest-Rated Ally 31 | . 10 10 10 31 16 Total Orders 11 | . 1 4 . 2 4 STAY 5 | . 1 1 . 1 2 FOLLOW 4 | . . 1 . 1 2 EXPLORE 2 | . . 2 . . . Ally Attacks 20 | . . 13 . . 7 Total Damage 89 | . . 20 . . 69 Kills 1 | . . 1 . . . Allies Corrupted 1 | . . 1 . . . Allies Melted . | . . . . . . Intel | -11 -10 -10 -10 -9 -8 ------- Run | Yrd Mat Min Exi Min Mat Robot Analysis Total . | . . . . . . Derelict Logs Recovered 3 | . . 2 . 1 . Drone Launches 6 | . . 6 . . . Drone Recoveries 3 | . . 3 . . . Exploration | -11 -10 -10 -10 -9 -8 ------------- Run | Yrd Mat Min Exi Min Mat Turns Passed 5700 | 28 2175 1101 275 487 1634 Spaces Moved 2858 | 10 840 612 207 305 884 Core 24 | . . . . . 24 Treads 770 | 10 591 . . . 169 Legs . | . . . . . . Wheels 1860 | . 249 612 207 305 487 Hover . | . . . . . . Flight 204 | . . . . . 204 Fastest Speed 32 | 160 130 145 130 130 32 Average Speed 153 | 160 203 145 130 133 122 Slowest Speed 350 | 160 240 145 130 145 350 Overloaded Moves . | . . . . . . Propulsion Burnouts . | . . . . . . Robots Hopped . | . . . . . . Cave-ins Triggered . | . . . . . . Exploration Rate (%) 56 | 2 93 98 59 50 35 Regions Visited 5 Branch Regions 3 Pre-discovered Areas 2 | . . . 1 1 . Known Exits Taken . | . . . . . . Unknown Exits Taken 5 | 1 1 1 1 1 . Scrap Searched 2 | . . 1 . 1 . Spaces Dug 9 | . . 3 . . 6 Terrain Destroyed 91 | . 54 3 . . 34 Melee 3 | . . 3 . . . Projectile 17 | . . . . . 17 AOE 71 | . 54 . . . 17 Terrain Rammed . | . . . . . . Walls Destroyed . | . . . . . . Machines Disabled . | . . . . . . Actions | -11 -10 -10 -10 -9 -8 --------- Run | Yrd Mat Min Exi Min Mat Total 3880 | 20 1219 783 215 353 1290 Wait 726 | 3 300 141 . 28 254 Move 2853 | 9 839 611 206 304 884 Hop . | . . . . . . Pick Up 31 | . 17 2 2 . 10 Fast Attach 19 | 1 4 2 . 1 11 Attach 14 | 1 3 . . . 10 Detach 6 | 1 . . 1 . 4 Swap 21 | 2 5 3 1 4 6 Drop 30 | 2 . 3 5 1 19 Fire 155 | 1 51 12 . 15 76 Melee 23 | . . 9 . . 14 Ram 2 | . . . . . 2 Kick . | . . . . . . Crush . | . . . . . . Escape Stasis . | . . . . . . Rewire . | . . . . . . Trap . | . . . . . . Miscellaneous . | . . . . . . Route ------- -11/Scrapyard -10/Materials (discovered 4 exits: [*Mat x2] / *Min x2) -10/Mines (discovered 3 exits: [*Mat x2] / *Exi) -10/Exiles -9/Mines (discovered 2 exits: *Mat x2) -8/Materials History --------- Turn | Location | Event 7 | -11/Scrapyard | Discovered new exit (range 3) 29 | -11/Scrapyard | Entered Materials 71 | -10/Materials | Discovered new exit (range 16) 310 | -10/Materials | Build established: Mutant 746 | -10/Materials | Discovered new exit (range 4) 851 | -10/Materials | Discovered new exit (range 11) 1029 | -10/Materials | Derelicts attacked the area 1724 | -10/Materials | Lost 3 parts (1p1n1u) 1728 | -10/Materials | Discovered new exit (range 10) 2022 | -10/Materials | Repaired Lgt. Treads 2050 | -10/Materials | Repaired Grenade Launcher 2090 | -10/Materials | Repaired Lgt. Nuclear Core 2117 | -10/Materials | Repaired Assault Rifle 2145 | -10/Materials | Repaired Assault Rifle 2172 | -10/Materials | Repaired Seismic Detector 2204 | -10/Materials | Entered Mines 2204 | -10/Mines | Accompanied by 1 ally 2255 | -10/Mines | Learned Materials trap positions 2387 | -10/Mines | Assembled infested the area 2393 | -10/Mines | Received a Rocket Launcher from a helpful Derelict 2483 | -10/Mines | Learned Materials trap positions 2522 | -10/Mines | Discovered new exit (range 6) 2703 | -10/Mines | Found the Drone Emporium 2710 | -10/Mines | Found Prototype Device 2710 | -10/Mines | Identified Thief Drone Bay 2927 | -10/Mines | Discovered new exit (range 13) 3012 | -10/Mines | Discovered new exit (range 5) 3305 | -10/Mines | Entered Exiles 3305 | -10/Exiles | Accompanied by 1 ally 3340 | -10/Exiles | Met 8R-AWN 3363 | -10/Exiles | Met EX-HEX 3398 | -10/Exiles | Met EX-BIN 3415 | -10/Exiles | Aligned with FarCom system 3416 | -10/Exiles | Given EX-Vault access code 3446 | -10/Exiles | Opened EX-Vault 3453 | -10/Exiles | Found Superbattery 3459 | -10/Exiles | Found Lightpack 2.0 3486 | -10/Exiles | Warned to stay clear of 0b10 Research branches 3525 | -10/Exiles | Met EX-DEC 3528 | -10/Exiles | Learned location of Zion (-7) 3568 | -10/Exiles | Discovered new exit (range 10) 3580 | -10/Exiles | Stole two prototypes: Lightpack 2.0, Superbattery 3580 | -10/Exiles | Entered Mines 3580 | -9/Mines | Accompanied by 1 ally 3615 | -9/Mines | Discovered new exit (range 14) 3643 | -9/Mines | Met a Derelict bent on vengeance 3702 | -9/Mines | Core integrity fell below 50% 3942 | -9/Mines | Discovered new exit (range 5) 3948 | -9/Mines | Learned location of Storage (-9) 3950 | -9/Mines | Assisted by bots powering up and referring to "LRC-V3" 4067 | -9/Mines | Entered Materials 4067 | -8/Materials | Accompanied by 4 allies 4067 | -8/Materials | Evolved 4 slots: Propulsion x2, Utility x2 4068 | -8/Materials | Loaded intel: 15 trap records 4143 | -8/Materials | Lost 3 allies 4363 | -8/Materials | Build established: Hauler-Mutant 5364 | -8/Materials | Core integrity fell below 50% 5391 | -8/Materials | Destroyed 7 combat bots 5419 | -8/Materials | Lost 7 parts (1p4n1u1w) 5454 | -8/Materials | Core integrity fell below 20% 5508 | -8/Materials | Lost 4 parts (2u2w) 5701 | -8/Materials | Destroyed by H-55 Commando with Assault Rifle Last Messages --------------- 05543_ Acquired 6 matter. 05549_ K-01 Serf cleans the Matter Pump. 05560_ Technician 1b reports 0b10 security level has risen to 1. 05573_ W-25 Informer destroyed. 05579_ Acquired Sml. Storage Unit. 05597_ Acquired 4 matter. 05600_ W-25 Informer suffers critical hit (Smash). 05600_ Destroyed Imp. Signal Interpreter. 05600_ Destroyed Visual Processing Unit. 05600_ W-25 Informer system corrupted by crushing effect. 05601_ W-25 Informer system terminally corrupted. 05603_ Acquired 37 matter. 05606_ Acquired 1 matter. 05615_ Acquired Deuterium Engine. 05617_ Acquired Adv. Treads. 05648_ Acquired 7 matter. 05658_ K-01 Serf cleans the Neutrino Reactor. 05667_ Technician 1b reports 0b10 security level has lowered to 0. 05667_ Acquired Lrg. Storage Unit. 05689_ Matter Pump disabled. Map ----- +----------------------------------------------------+ | ???????# ! #???????????????????????????????? | | ??????## /#???????????????????????????????? | | #############+####???????????????^???^^??????????? | | ####### #????????????????????????????????? | | #????????????????????????????????? | | T #????????????????????????????????? | | #????????????????????????????????? | | ####### #????????????????????????????????? | | ######### ##????????????????????^???????????? | | # ## #?????????????????????????????????? | | # ## #?????????????????????????????????? | | + ! * ## ########??????????????????????????? | | # ## # !*#??????????? ?""???????????? | | # ## #[ ! #??????????? ""??????????? | | #? ## # #??????????? ^ ??????????? | | ######### # "Y" ##????????? ^ ???????????? | | ## # # """ #????????? ""??? ???????? | | ## # # #####?????? """ ???????? | | ##### # ###+#+############ """ ??????? | | # # k ??????? | | """ # + ??????? | | """ # # !!= ??????? | | """ # ## ####+####o %!== ??????? | | # ## ## ?# != ##???????????? | | # ## ## + #????????????? | | # ## ## #h @ ######????????????? | | # + ## # ""% !##?????^???????? | | # # ### + """ !#?????????????? | | ###+# # #?# # """ #?????????????? | | ### ### #### ########## !#?????????????? | | !#?????????????? | | ######+##+#################+#### !##?????????????? | | ### # #????????????????####??????????????? | | ??### #??????????????????????????????????? | | ???## "T" #??????????????????????????????????? | | ????# #??????????????????????????????????? | | ????###########??????????????????????????????????? | | | | | | | | | | | | | | | | | | | | | | | | | | | +----------------------------------------------------+ Best States ------------- Heat Dissipation 31 Energy Generation 14 Energy Capacity 275 Matter Stores 300 Matter Capacity 300 Sight Range 16 Terrain Scan Density 10 Additional Mass Support 6 Armor Coverage 150 Evasion (%) 63 Recoil Reduction 3 Defensive Hacking 10 Item Schematics ----------------- None Robot Schematics ------------------ None Fabricated ------------ Nothing Alien Tech Used ----------------- None Achievements -------------- None Challenges ------------ None Game ------ Seed BeamFlyingBarrier Manual? 0 Play Time 00:45:28 Cumulative 123.1 hours Start 2024.05.24 @ 20:40:38 End 2024.05.25 @ 12:22:37 Sessions 2 Manual Loads 0 Difficulty Rogue Special Mode None Game No. 135 Rogue 135 Adventurer 0 Explorer 0 Win Type - Total 4 Types 2/0/2/0/0/0/0/0/0 Lore% 57 Gallery% 55 Achievement% 52 Wizard Run 0 Options --------- Layout 0 ASCII 0 Keyboard 0 Movement Mouse Keybinds 0 Fullscreen 2 Font 18/X11Bold Map View 76x50 Zoom Use 0% Tactical HUD 1 Map Filters NONE Filters NONE Steam 1 RUN: 88460662-1d5f-4b1c-9d73-7f541542d164